fUST/lending_fUST_20240821
["ID","MTS","AMOUNT","RATE_DAILY","PERIOD"]
[335386781,1724175038992,-193.29743,0.00029733,2]
[335386782,1724175039004,-178.69269968,0.0003,5]
[335386783,1724175039018,-225.0,0.0003,2]
[335386784,1724175039028,-213.16947616,0.0003,30]
[335386785,1724175039037,-172.0,0.0003,2]
[335386786,1724175039048,-151.0,0.00030454,2]
[335386787,1724175039060,-7726.0,0.00030896,2]
[335386788,1724175039071,-172.0,0.00031644,2]
[335386789,1724175039084,-1095.61048782,0.00031869,2]
[335386790,1724175039094,-151.0,0.00031969,3]
[335386791,1724175039103,-1095.6104878,0.00032302,2]
[335386792,1724175039113,-1095.6104878,0.00032735,2]
[335386793,1724175039124,-300.735,0.00033,21]
[335386794,1724175039135,-155.12080505,0.00033119,3]
[335386795,1724175039145,-1095.6104878,0.00033168,2]
[335386796,1724175039158,-151.0,0.00033484,4]
[335386797,1724175039170,-151.0,0.00033484,4]
[335386798,1724175039180,-1095.6104878,0.00033601,2]
[335386799,1724175039189,-339.13354,0.00033626,2]
[335386800,1724175039199,-153.0,0.0003389,2]
[335386801,1724175039208,-7726.0,0.00033896,2]
[335386802,1724175039218,-1000.0,0.00034,34]
[335386803,1724175039227,-213.0,0.00034,9]
[335386804,1724175039237,-1095.6104878,0.00034034,2]
[335386805,1724175039247,-604.42864873,0.00034141,24]
[335386806,1724175039259,-226.71753,0.00034247,2]
[335386807,1724175039269,-150.112233,0.000344,9]
[335386808,1724175039279,-150.112235,0.000344,10]
[335386809,1724175039288,-150.0,0.00034429,2]
[335386810,1724175039298,-126879.82360725,0.0003445,5]
[335386811,1724175039307,-83581.86832959,0.0003445,5]
[335386812,1724175039317,-733.77617438,0.0003445,3]
[335386813,1724175039327,-154.57491897,0.0003445,4]
[335386814,1724175039336,-94569.17947495,0.0003445,60]
[335386829,1724175040674,-2419.89933959,0.00024247,2]
[335386830,1724175040683,-45356.20338936,0.0003445,60]
[335386831,1724175040695,-228683.84270681,0.0003445,60]
[335386892,1724175046478,-10342.93698711,0.00019799,2]
[335386893,1724175046488,-266.0,0.0003445,2]
[335386895,1724175046497,-78813.78886304,0.0003445,60]
[335386896,1724175046507,-180.539991,0.0003445,7]
[335386897,1724175046516,-151.0,0.0003445,7]
[335386898,1724175046526,-151.0,0.0003445,7]
[335386899,1724175046535,-151.0,0.0003445,7]
[335386900,1724175046545,-151.0,0.0003445,7]
[335386901,1724175046554,-151.0,0.0003445,7]
[335386902,1724175046564,-151.0,0.0003445,7]
[335386903,1724175046573,-151.0,0.0003445,7]
[335386904,1724175046583,-151.0,0.0003445,7]
[335386905,1724175046592,-151.0,0.0003445,7]
[335386906,1724175046601,-151.0,0.0003445,7]
[335386907,1724175046611,-155.104913,0.0003445,7]
[335386908,1724175046620,-151.0,0.0003445,7]
[335386909,1724175046630,-262.148249,0.0003445,7]
[335386910,1724175046640,-262.148249,0.0003445,7]
[335386911,1724175046649,-151.0,0.0003445,7]
[335386912,1724175046658,-151.0,0.0003445,7]
[335386913,1724175046668,-151.0,0.0003445,7]
[335386914,1724175046678,-151.0,0.0003445,7]
[335386915,1724175046688,-151.0,0.0003445,7]
[335386916,1724175046698,-1095.6104878,0.00034467,2]
[335386917,1724175046707,-150.0,0.00034473,5]
[335386918,1724175046716,-5261.9,0.000345,3]
[335386919,1724175046726,-150.0,0.00034519,2]
[335386920,1724175046737,-6235.18,0.0003452,21]
[335386921,1724175046746,-6235.18,0.0003452,21]
[335386922,1724175046761,-6235.18,0.0003452,21]
[335386923,1724175046772,-6235.18,0.0003452,21]
[335386924,1724175046781,-6235.18,0.0003452,21]
[335386925,1724175046791,-6235.18,0.0003452,21]
[335386926,1724175046801,-6235.18,0.0003452,21]
[335386927,1724175046811,-6235.18,0.0003452,21]
[335386928,1724175046820,-6235.18,0.0003452,21]
[335386929,1724175046831,-6235.18,0.0003452,21]
[335386930,1724175046840,-6235.18,0.0003452,21]
[335386931,1724175046852,-6235.18,0.0003452,21]
[335386932,1724175046863,-6235.18,0.0003452,21]
[335386933,1724175046872,-6235.18,0.0003452,21]
[335386934,1724175046881,-6235.18,0.0003452,21]
[335386935,1724175046890,-6235.18,0.0003452,21]
[335386936,1724175046899,-6235.18,0.0003452,21]
[335386937,1724175046909,-6235.18,0.0003452,21]
[335386938,1724175046919,-6235.18,0.0003452,21]
[335386939,1724175046930,-6235.18,0.0003452,21]
[335386940,1724175046941,-6235.18,0.0003452,21]
[335386941,1724175046953,-6235.18,0.0003452,21]
[335386942,1724175046965,-6235.18,0.0003452,21]
[335386943,1724175046975,-6235.19358148,0.0003452,21]
[335386944,1724175046984,-182.5,0.000349,9]
[335386945,1724175046994,-150.112233,0.000349,8]
[335386946,1724175047005,-27483.3154823,0.000349,2]
[335386947,1724175047015,-1095.6104878,0.000349,2]
[335386948,1724175047024,-150.0,0.0003492,2]
[335386949,1724175047034,-1000.0,0.00034931,3]
[335386950,1724175047044,-1000.0,0.00034931,21]
[335386951,1724175047053,-1000.0,0.00034931,21]
[335386952,1724175047063,-1000.0,0.00034931,21]
[335386953,1724175047073,-500.0,0.00034931,21]
[335386954,1724175047087,-462.83761311,0.00034931,21]
[335386955,1724175047097,-501.10654671,0.00034931,21]
[335386956,1724175047106,-500.0,0.00034931,21]
[335386957,1724175047116,-500.0,0.00034931,21]
[335386958,1724175047127,-500.0,0.00034931,21]
[335386959,1724175047138,-501.07961395,0.00034931,21]
[335386960,1724175047147,-501.05073167,0.00034931,21]
[335386961,1724175047157,-500.0,0.00034931,21]
[335386962,1724175047170,-500.0,0.00034931,21]
[335386963,1724175047180,-526.93603472,0.00034931,21]
[335386964,1724175047190,-500.0,0.00034931,21]
[335386965,1724175047199,-533.92666881,0.00034931,21]
[335386966,1724175047209,-501.42800807,0.00034931,21]
[335386967,1724175047219,-504.05457436,0.00034931,21]
[335386968,1724175047228,-500.0,0.00034931,21]
[335386969,1724175047238,-500.0,0.00034931,21]
[335386970,1724175047248,-500.0,0.00034931,21]
[335386971,1724175047258,-355.09,0.00034931,21]
[335386972,1724175047268,-502.67082172,0.00034931,21]
[335386973,1724175047278,-500.0,0.00034931,21]
[335386974,1724175047287,-250.01,0.00034931,21]
[335386975,1724175047297,-500.0,0.00034931,21]
[335386976,1724175047306,-500.0,0.00034931,20]
[335386977,1724175047318,-500.0,0.00034931,21]
[335386978,1724175047328,-501.50084685,0.00034931,21]
[335386979,1724175047337,-500.0,0.00034931,21]
[335386980,1724175047347,-500.0,0.00034931,21]
[335386981,1724175047357,-500.0,0.00034931,21]
[335386982,1724175047367,-500.0,0.00034931,21]
[335386983,1724175047377,-500.0,0.00034931,21]
[335386984,1724175047388,-608.86644204,0.00034931,21]
[335386985,1724175047398,-500.0,0.00034931,21]
[335386986,1724175047409,-500.0,0.00034931,21]
[335386987,1724175047419,-151.0,0.00034931,7]
[335386988,1724175047429,-418.45652263,0.00034931,21]
[335386989,1724175047440,-559.65,0.00034931,21]
[335386990,1724175047450,-500.0,0.00034931,21]
[335386991,1724175047459,-167.290911,0.00034931,7]
[335386992,1724175047469,-500.0,0.00034931,21]
[335386993,1724175047478,-500.0,0.00034931,21]
[335386994,1724175047487,-504.03964716,0.00034931,21]
[335386995,1724175047496,-500.0,0.00034931,21]
[335386996,1724175047507,-500.0,0.00034931,21]
[335386997,1724175047516,-484.34,0.00034931,21]
[335386998,1724175047526,-500.0,0.00034931,21]
[335386999,1724175047536,-500.0,0.00034931,21]
[335387000,1724175047545,-500.0,0.00034931,21]
[335387001,1724175047554,-500.0,0.00034931,21]
[335387002,1724175047563,-500.0,0.00034931,21]
[335387003,1724175047574,-500.0,0.00034931,21]
[335387004,1724175047584,-500.0,0.00034931,21]
[335387005,1724175047593,-500.0,0.00034931,21]
[335387006,1724175047603,-500.0,0.00034931,21]
[335387007,1724175047612,-500.0,0.00034931,21]
[335387008,1724175047622,-500.0,0.00034931,21]
[335387009,1724175047632,-500.0,0.00034931,21]
[335387010,1724175047642,-500.0,0.00034931,21]
[335387011,1724175047651,-500.0,0.00034931,21]
[335387012,1724175047660,-500.0,0.00034931,21]
[335387013,1724175047670,-500.0,0.00034931,21]
[335387014,1724175047680,-500.0,0.00034931,21]
[335387015,1724175047690,-500.0,0.00034931,21]
[335387016,1724175047700,-500.0,0.00034931,21]
[335387017,1724175047710,-500.0,0.00034931,21]
[335387018,1724175047719,-150.0,0.00034931,21]
[335387019,1724175047730,-500.0,0.00034931,21]
[335387020,1724175047739,-500.0,0.00034931,21]
[335387021,1724175047748,-500.41807037,0.00034931,21]
[335387022,1724175047762,-500.0,0.00034931,21]
[335387023,1724175047771,-500.0,0.00034931,21]
[335387024,1724175047781,-629.9,0.00034931,21]
[335387025,1724175047791,-500.0,0.00034931,21]
[335387026,1724175047801,-500.0,0.00034931,21]
[335387027,1724175047810,-500.0,0.00034931,21]
[335387028,1724175047820,-500.0,0.00034931,21]
[335387029,1724175047829,-267.91929941,0.00034931,21]
[335387030,1724175047838,-500.0,0.00034931,21]
[335387031,1724175047848,-500.0,0.00034931,21]
[335387032,1724175047858,-500.0,0.00034931,21]
[335387033,1724175047868,-500.0,0.00034931,21]
[335387034,1724175047877,-500.0,0.00034931,21]
[335387035,1724175047887,-500.0,0.00034931,21]
[335387036,1724175047896,-501.5797895,0.00034931,21]
[335387037,1724175047906,-500.0,0.00034931,21]
[335387038,1724175047915,-500.0,0.00034931,21]
[335387039,1724175047925,-501.81139432,0.00034931,21]
[335387040,1724175047934,-500.0,0.00034931,21]
[335387041,1724175047943,-500.0,0.00034931,21]
[335387042,1724175047954,-500.0,0.00034931,21]
[335387043,1724175047964,-500.0,0.00034931,21]
[335387044,1724175047973,-500.0,0.00034931,21]
[335387045,1724175047984,-500.0,0.00034931,21]
[335387046,1724175047993,-500.0,0.00034931,21]
[335387047,1724175048003,-500.0,0.00034931,21]
[335387048,1724175048012,-502.54420645,0.00034931,21]
[335387049,1724175048022,-301.63614786,0.00034931,21]
[335387050,1724175048031,-500.0,0.00034931,21]
[335387051,1724175048040,-500.0,0.00034931,21]
[335387052,1724175048050,-610.02,0.00034931,21]
[335387053,1724175048060,-500.0,0.00034931,21]
[335387054,1724175048070,-512.16275258,0.00034931,21]
[335387055,1724175048080,-525.85359345,0.00034931,21]
[335387056,1724175048093,-500.94100184,0.00034931,21]
[335387057,1724175048103,-646.7,0.00034931,21]
[335387058,1724175048112,-500.0,0.00034931,21]
[335387059,1724175048122,-500.89056968,0.00034931,21]
[335387060,1724175048133,-500.0,0.00034931,21]
[335387061,1724175048143,-500.0,0.00034931,21]
[335387062,1724175048153,-512.22303326,0.00034931,21]
[335387063,1724175048166,-500.0,0.00034931,21]
[335387064,1724175048176,-500.0,0.00034931,21]
[335387065,1724175048186,-500.0,0.00034931,21]
[335387066,1724175048194,-500.0,0.00034931,21]
[335387067,1724175048204,-500.0,0.00034931,21]
[335387068,1724175048215,-643.53,0.00034931,21]
[335387069,1724175048226,-500.0,0.00034931,21]
[335387070,1724175048237,-500.0,0.00034931,21]
[335387071,1724175048247,-569.26187696,0.00034931,21]
[335387072,1724175048258,-500.0,0.00034931,21]
[335387073,1724175048268,-500.0,0.00034931,21]
[335387074,1724175048278,-500.0,0.00034931,21]
[335387075,1724175048288,-500.0,0.00034931,21]
[335387076,1724175048298,-500.0,0.00034931,21]
[335387077,1724175048308,-500.0,0.00034931,21]
[335387078,1724175048317,-500.0,0.00034931,21]
[335387079,1724175048327,-500.0,0.00034931,21]
[335387080,1724175048337,-520.460249,0.00034931,21]
[335387081,1724175048347,-500.0,0.00034931,21]
[335387082,1724175048357,-500.0,0.00034931,21]
[335387083,1724175048367,-334.15469919,0.00034931,21]
[335387084,1724175048377,-500.0,0.00034931,21]
[335387085,1724175048387,-500.0,0.00034931,21]
[335387086,1724175048397,-500.0,0.00034931,21]
[335387087,1724175048406,-500.0,0.00034931,21]
[335387088,1724175048523,-500.0,0.00034931,21]
[335387089,1724175048533,-500.0,0.00034931,21]
[335387090,1724175048543,-500.0,0.00034931,21]
[335387091,1724175048552,-500.0,0.00034931,21]
[335387092,1724175048562,-500.0,0.00034931,21]
[335387093,1724175048572,-500.0,0.00034931,21]
[335387094,1724175048581,-500.0,0.00034931,21]
[335387095,1724175048591,-500.0,0.00034931,21]
[335387096,1724175048600,-500.0,0.00034931,21]
[335387097,1724175048610,-339.35715351,0.00034931,21]
[335387098,1724175048622,-500.0,0.00034931,21]
[335387099,1724175048632,-500.0,0.00034931,21]
[335387100,1724175048643,-500.0,0.00034931,21]
[335387101,1724175048653,-35.85540677,0.00034931,21]
[335387102,1724175087579,500.0,0.00016438,2]
[335387103,1724175087633,1000.0,0.00016986,2]
[335387104,1724175087688,1500.0,0.00017884,2]
[335387107,1724175192684,6104.75107337,0.000203,120]
[335387108,1724175192716,18674.65274863,0.000203,120]
[335387118,1724176038156,-205.83207774,0.00012989,2]
[335387119,1724176043205,-2505.92366532,0.00012989,2]
[335387120,1724176043226,-292.43837277,0.0001408,2]
[335387121,1724176043248,-291.255863,0.00014247,2]
[335387122,1724176043269,-173.845196,0.00014247,2]
[335387123,1724176043290,-264.57625328,0.00016438,2]
[335387124,1724176046129,-235.42374672,0.00016438,2]
[335387125,1724176046151,-1000.0,0.00016986,2]
[335387126,1724176046172,-278.738798,0.00017311,2]
[335387127,1724176046192,-139.70656068,0.00017884,2]
[335387128,1724176054755,-356.4971982,0.00017884,2]
[335387131,1724176133056,399.49580145,0.0001,2]
[335387132,1724176150133,-618.86853579,0.00014245,2]
[335387133,1724176150157,-196.46592906,0.00014245,2]
[335387134,1724176150179,-190.05416468,0.00014245,2]
[335387135,1724176150200,-301.4340064,0.00014245,2]
[335387136,1724176150222,-850.77095099,0.00014245,2]
[335387137,1724176150243,-272.94674612,0.00014245,2]
[335387138,1724176150417,-154.71377951,0.00014519,2]
[335387139,1724176150445,-281.82485152,0.00014519,2]
[335387140,1724176150466,-154.7755384,0.00014519,2]
[335387141,1724176150488,-2141.98037149,0.00014519,2]
[335387142,1724176150511,-187.98506453,0.00014519,2]
[335387143,1724176150536,-154.71377951,0.00014519,2]
[335387144,1724176150560,-585.82883324,0.00014519,2]
[335387145,1724176150582,-452.41866698,0.00014519,2]
[335387146,1724176150603,-156.50620257,0.00014519,2]
[335387147,1724176150624,-160.39523982,0.00014519,2]
[335387148,1724176150645,-155.29231191,0.00014519,2]
[335387149,1724176150666,-154.89909323,0.00014519,2]
[335387150,1724176150690,-188.54248391,0.00014519,2]
[335387151,1724176150711,-157.07977921,0.00014519,2]
[335387152,1724176150732,-1765.95777024,0.00014519,2]
[335387153,1724176150753,-3092.29525395,0.00014519,2]
[335387154,1724176150773,-239.30896493,0.00014519,2]
[335387155,1724176150793,-256.25434848,0.00014519,2]
[335387156,1724176150814,-180.7743733,0.00014519,2]
[335387157,1724176150836,-665.39526372,0.00014519,2]
[335387158,1724176150862,-500.0,0.00016438,2]
[335387159,1724176150883,-1000.0,0.00016986,2]
[335387160,1724176150904,-981.21078068,0.00017884,2]
[335387161,1724176150925,-3609.14757427,0.00017884,2]
[335387162,1724176150948,-13562.06689548,0.00017884,2]
[335387163,1724176150970,-367.46089133,0.00017884,2]
[335387164,1724176151006,403.97807828,0.00014245,2]
[335387165,1724176152161,-423.5,0.00018383,2]
[335387166,1724176152414,209.98113273,0.00014245,2]
[335387167,1724176164118,-153.27494745,0.00018773,2]
[335387168,1724176164147,-125.46385055,0.00018773,2]
[335387169,1724176164168,-214.7749414,0.00019178,2]
[335387170,1724176164189,-222.986905,0.00019178,2]
[335387171,1724176164208,-251.0,0.00019178,2]
[335387172,1724176164229,-423.5,0.00019894,2]
[335387173,1724176164250,-156.6552172,0.0002,2]
[335387174,1724176170151,-2180.42311944,0.00020189,2]
[335387175,1724176170173,-287.79514657,0.0002024,2]
[335387176,1724176173676,162.36082463,0.00014519,2]
[335387195,1724176207273,341.43157984,0.00014519,2]
[335387196,1724176225289,223.17571711,0.00014519,2]
[335387259,1724176238753,-10342.93698711,0.00020203,2]
[335387260,1724176238763,-10342.93698711,0.00020203,2]
[335387261,1724176238772,-48296.7289133,0.0002028,2]
[335387262,1724176238781,-500.0,0.00020289,2]
[335387263,1724176238792,-500.0,0.00020289,2]
[335387264,1724176238802,-585.711323,0.00020289,2]
[335387265,1724176238812,-144890.18674,0.0002029,2]
[335387266,1724176238822,-500.0,0.00020299,2]
[335387267,1724176238832,-242.06831917,0.00020299,2]
[335387268,1724176238842,-500.0,0.00020299,2]
[335387269,1724176238851,-500.0,0.00020299,2]
[335387270,1724176238861,-500.0,0.00020299,2]
[335387271,1724176238872,-650.16228389,0.00020299,2]
[335387272,1724176238882,-500.0,0.00020299,2]
[335387273,1724176238891,-500.0,0.00020299,2]
[335387274,1724176238900,-226.11908431,0.000203,2]
[335387275,1724176238909,-10511.84618177,0.000203,2]
[335387276,1724176238920,-2419.89933959,0.000203,2]
[335387277,1724176238931,-126499.41497098,0.000203,2]
[335387278,1724176238941,-551.16624487,0.000203,2]
[335387279,1724176238951,-291.255863,0.00020707,2]
[335387280,1724176238962,-423.5,0.00021404,2]
[335387281,1724176238972,-302.21432435,0.00022,2]
[335387282,1724176238982,-882.96114551,0.0002217,2]
[335387283,1724176238992,-302.2143244,0.0002222,2]
[335387284,1724176239003,-166.332644,0.00022225,2]
[335387285,1724176239013,-171.493404,0.00022225,2]
[335387286,1724176239022,-168.584172,0.00022225,2]
[335387287,1724176239031,-2180.42311944,0.00022291,2]
[335387288,1724176239040,-171.493404,0.00022781,2]
[335387289,1724176239050,-423.5,0.00022915,2]
[335387290,1724176239059,-166.332644,0.00023336,2]
[335387291,1724176239068,-171.493404,0.00023336,2]
[335387292,1724176239078,-168.584172,0.00023336,2]
[335387293,1724176239088,-953.45396956,0.00024042,2]
[335387294,1724176239097,-782.65797788,0.00024099,2]
[335387295,1724176239106,-154.57491897,0.00024105,2]
[335387296,1724176239116,-277.6716568,0.00024115,2]
[335387297,1724176239125,-160.83387276,0.00024118,2]
[335387298,1724176239135,-2180.42311944,0.00024392,2]
[335387299,1724176239145,-423.5,0.00024425,2]
[335387300,1724176239155,-151.0,0.00024425,2]
[335387301,1724176239164,-150.112233,0.000245,3]
[335387302,1724176239176,-154.57491897,0.00024571,2]
[335387303,1724176239185,-48296.7289133,0.00024596,3]
[335387304,1724176239195,-200.0,0.00024658,15]
[335387305,1724176239205,-154.57491897,0.00025,2]
[335387306,1724176239215,-196.25684947,0.00025,2]
[335387307,1724176239226,-503.64031218,0.00025,2]
[335387308,1724176239236,-503.64031218,0.0002525,2]
[335387309,1724176239246,-506.95903917,0.000255,2]
[335387310,1724176239368,-423.5,0.00025936,2]
[335387311,1724176239384,-151.0,0.00025936,2]
[335387312,1724176239394,-150.112233,0.00026,9]
[335387313,1724176239403,-2180.42311944,0.00026494,2]
[335387314,1724176239412,-291.255863,0.00027167,2]
[335387315,1724176239421,-423.5,0.00027446,2]
[335387316,1724176239431,-151.0,0.00027446,2]
[335387317,1724176239441,-150.112233,0.000275,6]
[335387318,1724176239450,-224.399999,0.00028,2]
[335387319,1724176239461,-339.14513774,0.00028,30]
[335387320,1724176239471,-2180.42311944,0.00028595,2]
[335387321,1724176239480,-423.5,0.00028957,2]
[335387322,1724176239490,-151.0,0.00028957,2]
[335387323,1724176239499,-300.0,0.00029,2]
[335387324,1724176239509,-150.112233,0.00029,8]
[335387325,1724176239518,-1415.0,0.00029525,2]
[335387326,1724176239527,-7726.0,0.00029525,2]
[335387327,1724176239537,-153.0,0.00029766,2]
[335387328,1724176239547,-153.0,0.00029766,2]
[335387329,1724176239556,-213.16947616,0.0003,30]
[335387330,1724176239566,-489.18411625,0.0003,3]
[335387331,1724176239587,-178.69269968,0.0003,5]
[335387332,1724176239597,-300.0,0.0003,2]
[335387333,1724176239607,-151.0,0.0003,120]
[335387334,1724176239617,-630.0,0.0003,120]
[335387335,1724176239627,-179.0,0.0003,2]
[335387336,1724176239636,-423.5,0.00030467,2]
[335387337,1724176239646,-151.0,0.00030467,2]
[335387338,1724176239656,-150.112233,0.000305,7]
[335387339,1724176239665,-2180.42311944,0.00030697,2]
[335387340,1724176239675,-300.0,0.00031,4]
[335387341,1724176239685,-5117.28593988,0.00031148,2]
[335387342,1724176239695,-5117.28593988,0.00031429,2]
[335387343,1724176239706,-5117.28593988,0.00031659,2]
[335387344,1724176239716,-48296.7289133,0.00031821,4]
[335387345,1724176239725,-423.5,0.00031978,3]
[335387346,1724176239735,-151.0,0.00031978,3]
[335387347,1724176239744,-300.0,0.00032,5]
[335387348,1724176239756,-1000.0,0.00032,32]
[335387349,1724176239766,-150.112233,0.00032,5]
[335387350,1724176239776,-9737.57048829,0.00032,7]
[335387351,1724176239786,-828.80041013,0.00032,7]
[335387352,1724176239797,-5117.28593988,0.00032025,2]
[335387353,1724176239807,-5117.28593988,0.00032065,2]
[335387354,1724176239816,-248.4940291,0.000324,2]
[335387355,1724176239826,-151.0,0.0003249,7]
[335387356,1724176239836,-519.828665,0.0003249,7]
[335387357,1724176239846,-519.828665,0.0003249,7]
[335387358,1724176239855,-151.0,0.0003249,7]
[335387359,1724176239865,-151.0,0.0003249,7]
[335387360,1724176239875,-151.0,0.0003249,7]
[335387361,1724176239884,-151.0,0.0003249,7]
[335387362,1724176239895,-151.0,0.0003249,7]
[335387363,1724176239904,-151.0,0.0003249,7]
[335387364,1724176239915,-151.0,0.0003249,7]
[335387365,1724176239925,-168.25147,0.0003249,7]
[335387366,1724176239935,-228683.84270681,0.000325,60]
[335387367,1724176239945,-746.42,0.000325,14]
[335387368,1724176239955,-4405.1,0.000325,14]
[335387369,1724176239965,-238.05,0.000325,7]
[335387370,1724176239975,-151.0,0.000325,7]
[335387371,1724176239985,-519.828665,0.000325,7]
[335387372,1724176239995,-519.828665,0.000325,7]
[335387373,1724176240006,-151.0,0.000325,7]
[335387374,1724176240015,-221.988396,0.000325,7]
[335387375,1724176240025,-43105.58,0.000325,14]
[335387376,1724176240035,-203.728254,0.000325,7]
[335387377,1724176240045,-151.0,0.000325,7]
[335387378,1724176240055,-151.0,0.000325,7]
[335387379,1724176240065,-151.0,0.000325,7]
[335387380,1724176240074,-151.0,0.000325,7]
[335387381,1724176240084,-151.0,0.000325,7]
[335387382,1724176240094,-151.0,0.000325,7]
[335387383,1724176240104,-151.0,0.000325,7]
[335387384,1724176240114,-151.0,0.000325,7]
[335387385,1724176240126,-197.663548,0.000325,7]
[335387386,1724176240137,-197.663548,0.000325,7]
[335387387,1724176240147,-153.987623,0.000325,7]
[335387388,1724176240159,-153.987623,0.000325,7]
[335387389,1724176240169,-161.29168,0.000325,7]
[335387390,1724176240179,-151.0,0.000325,7]
[335387391,1724176240189,-161.29168,0.000325,7]
[335387392,1724176240199,-151.0,0.000325,7]
[335387393,1724176240209,-151.0,0.000325,7]
[335387394,1724176240219,-151.0,0.000325,7]
[335387395,1724176240231,-294.120576,0.000325,7]
[335387397,1724176240241,-151.0,0.000325,7]
[335387398,1724176240252,-151.0,0.000325,7]
[335387399,1724176240262,-235.933424,0.000325,7]
[335387401,1724176240271,-235.933424,0.000325,7]
[335387402,1724176240281,-363.48166,0.000325,7]
[335387403,1724176240291,-363.48166,0.000325,7]
[335387404,1724176240302,-5117.28593988,0.00032511,2]
[335387405,1724176240311,-3027.69696172,0.00032525,2]
[335387409,1724176240721,-151.0,0.000325,7]
[335387410,1724176240731,-4698.30303828,0.00032525,2]
[335387411,1724176240743,-198.29562586,0.00032658,2]
[335387412,1724176240755,-248.49402905,0.00032678,2]
[335387413,1724176240764,-2180.42311944,0.00032798,2]
[335387414,1724176240774,-150.112233,0.000328,7]
[335387415,1724176240784,-5117.28593988,0.00032849,2]
[335387416,1724176240794,-5117.28593988,0.00032888,2]
[335387417,1724176240804,-248.49402905,0.00032956,2]
[335387418,1724176240814,-11510.093154,0.00033,120]
[335387419,1724176240824,-172.0,0.00033,2]
[335387420,1724176240834,-300.0,0.00033,7]
[335387421,1724176240844,-179.0,0.00033,2]
[335387422,1724176240853,-300.73505899,0.00033,21]
[335387423,1724176240863,-5117.28593988,0.00033213,2]
[335387424,1724176240873,-248.49402905,0.00033233,2]
[335387425,1724176240883,-155.12080504,0.00033234,3]
[335387426,1724176240893,-423.5,0.00033488,4]
[335387427,1724176240903,-151.0,0.00033488,4]
[335387428,1724176240913,-150.112233,0.000335,8]
[335387429,1724176240923,-248.49402905,0.00033511,2]
[335387430,1724176240932,-150.0,0.00033524,2]
[335387431,1724176240942,-5117.28593988,0.00033592,2]
[335387432,1724176240952,-291.255863,0.00033626,2]
[335387433,1724176240963,-150.0,0.00033658,2]
[335387434,1724176240972,-5117.28593988,0.00033761,2]
[335387435,1724176240983,-248.49402905,0.00033789,2]
[335387436,1724176240992,-150.112233,0.000339,6]
[335387437,1724176241002,-1000.0,0.00034,34]
[335387438,1724176241012,-300.0,0.00034,9]
[335387439,1724176241022,-1932.186094,0.00034,17]
[335387440,1724176241032,-150.0,0.00034029,2]
[335387441,1724176241041,-248.49402905,0.00034067,2]
[335387442,1724176241050,-5117.28593988,0.00034237,2]
[335387443,1724176241060,-239.278058,0.00034247,2]
[335387444,1724176241070,-151.20881187,0.00034319,2]
[335387445,1724176241079,-248.49402905,0.00034344,2]
[335387446,1724176241089,-43105.58,0.000344,14]
[335387447,1724176241099,-153.987623,0.000344,7]
[335387448,1724176241108,-153.987623,0.000344,7]
[335387449,1724176241119,-161.29168,0.000344,7]
[335387450,1724176241130,-151.0,0.000344,7]
[335387451,1724176241141,-161.29168,0.000344,7]
[335387452,1724176241151,-151.0,0.000344,7]
[335387453,1724176241162,-151.0,0.000344,7]